fUSD/lending_fUSD_20250302
["ID","MTS","AMOUNT","RATE_DAILY","PERIOD"]
[355128412,1740930665696,-580.87,0.00028767,2]
[355128413,1740930665707,-603.63,0.00028767,2]
[355128414,1740930665717,-500.0,0.00028767,2]
[355128415,1740930665727,-1637.62,0.00028767,2]
[355128416,1740930665736,-1394.88,0.00028767,2]
[355128417,1740930665746,-4299.86,0.00028767,2]
[355128418,1740930665756,-2839.17,0.00028767,2]
[355128419,1740930665766,-500.0,0.00028767,2]
[355128420,1740930665776,-766.74,0.00028767,2]
[355128421,1740930665792,-749.36,0.00028767,2]
[355128422,1740930665802,-910.07,0.00028767,2]
[355128423,1740930665815,-500.0,0.00028767,2]
[355128424,1740930665831,-1121.7,0.00028767,2]
[355128425,1740930665841,-516.14,0.00028767,2]
[355128426,1740930665851,-1622.86,0.00028767,2]
[355128427,1740930665860,-1793.0,0.00028767,2]
[355128428,1740930665870,-1560.4,0.00028767,2]
[355128429,1740930665880,-618.43,0.00028767,2]
[355128430,1740930665890,-760.98,0.00028767,2]
[355128431,1740930665899,-889.47,0.00028767,2]
[355128432,1740930665910,-733.37,0.00028767,2]
[355128433,1740930665920,-806.07,0.00028767,2]
[355128434,1740930665929,-2443.66,0.00028767,2]
[355128435,1740930665939,-3279.81,0.00028767,2]
[355128436,1740930665948,-1526.61,0.00028767,2]
[355128437,1740930665959,-1347.2,0.00028767,2]
[355128438,1740930665968,-727.44,0.00028767,2]
[355128439,1740930665978,-500.0,0.00028767,2]
[355128440,1740930665987,-150.0,0.00028793,2]
[355128441,1740930665997,-1000.0,0.00028806,2]
[355128442,1740930666007,-150.0,0.00028829,2]
[355128443,1740930666017,-4053.55844478,0.0002888,120]
[355128444,1740930666027,-150.0,0.00028895,2]
[355128445,1740930666041,-1013.15,0.00028903,2]
[355128446,1740930666051,-150.0,0.00028968,2]
[355128447,1740930666061,-143482.20877587,0.00029,7]
[355128448,1740930666219,-2894.382224,0.00029,7]
[355128449,1740930666232,-1269.0,0.00029,7]
[355128450,1740930666244,-2540.48099315,0.00029,7]
[355128451,1740930666257,-16732.17720452,0.00029,7]
[355128452,1740930666270,-2063.6677698,0.00029,7]
[355128453,1740930666285,-2533.21100852,0.00029,7]
[355128454,1740930666353,-4676.64712602,0.00029,7]
[355128455,1740930666365,-93905.47113392,0.00029,7]
[355128456,1740930666377,-5434.96229997,0.00029,7]
[355128457,1740930740407,50000.0,0.00029597,30]
[355128458,1740930744366,50000.0,0.00029597,31]
[355128459,1740930748299,50000.0,0.00029597,32]
[355128460,1740930751933,50000.0,0.00029597,33]
[355128461,1740930755427,50000.0,0.00029597,34]
[355128462,1740931033500,500.0,0.00029597,30]
[355128463,1740931033914,500.0,0.00029597,30]
[355128464,1740931090015,-4000.0,0.000149,2]
[355128465,1740931225306,-500.0,0.0002302,30]
[355128466,1740931225329,-500.0,0.0002302,30]
[355128467,1740931225351,-500.0,0.0002302,30]
[355128468,1740931225374,-500.0,0.0002302,30]
[355128469,1740931225397,-500.0,0.0002302,30]
[355128470,1740931225420,-500.0,0.0002302,30]
[355128471,1740931225443,-500.0,0.0002302,30]
[355128472,1740931245304,-1038.69,0.00027382,120]
[355128473,1740931306233,-200.0,0.00029,120]
[355128474,1740931306259,-1398.83,0.00029065,120]
[355128475,1740931306288,-4413.30422201,0.000295,120]
[355128476,1740931306311,-5013.9737609,0.000295,30]
[355128477,1740931306341,-3000.0,0.00029595,30]
[355128478,1740931306365,-1980.35,0.00029597,30]
[355128479,1740931306391,-4908.11572391,0.00029597,30]
[355128480,1740931306414,-1237.0271349,0.0002985,30]
[355128481,1740931306444,-156.42712097,0.00029898,30]
[355128482,1740931306471,-5016.07783734,0.0003,120]
[355128483,1740931306493,-5556.90238749,0.0003,120]
[355128484,1740931306516,-500.0,0.0003,120]
[355128485,1740931333189,-7304.78875513,0.00029,15]
[355128486,1740931333239,-1077.82461428,0.00029999,15]
[355128487,1740931333264,-727.373009,0.00029999,15]
[355128488,1740931333291,-52970.31543407,0.0003,20]
[355128489,1740931439742,-2972.2626,0.000149,2]
[355128490,1740931483833,-500.0,0.0002302,30]
[355128491,1740931483857,-500.0,0.0002302,30]
[355128492,1740931483881,-500.0,0.0002302,30]
[355128493,1740931483904,-500.0,0.0002302,30]
[355128494,1740931483990,-47029.68456593,0.0003,20]
[355128495,1740931484017,-5000.0,0.0003,15]
[355128496,1740931487213,-150.0,0.00015098,2]
[355128497,1740931487236,-450.0,0.00015098,2]
[355128498,1740931487264,-266.82987332,0.00015395,2]
[355128499,1740931487301,-2819.82561414,0.0001542,2]
[355128500,1740931487332,-150.0,0.0001542,2]
[355128501,1740931487359,-450.0,0.0001639,2]
[355128502,1740931487385,-150.0,0.0001639,2]
[355128503,1740931487411,-450.0,0.0001639,2]
[355128504,1740931487436,-2827.63723697,0.000165,2]
[355128505,1740931487461,-2285.70727557,0.00017836,2]
[355128506,1740931499964,-1208.56074244,0.00028904,10]
[355128507,1740931500009,-1800.0,0.000298,10]
[355128508,1740931500036,-500.0,0.00029851,11]
[355128509,1740931500061,-500.0,0.00029851,11]
[355128510,1740931500244,-500.0,0.00029851,11]
[355128511,1740931500293,-500.0,0.00029851,11]
[355128512,1740931500318,-500.0,0.00029851,11]
[355128513,1740931500342,-500.0,0.00029851,11]
[355128514,1740931500365,-500.0,0.00029851,11]
[355128515,1740931500387,-500.0,0.00029851,11]
[355128516,1740931500410,-500.0,0.00029851,11]
[355128517,1740931500432,-500.0,0.00029851,11]
[355128518,1740931500461,-1800.0,0.000299,10]
[355128519,1740931515583,-150.0,0.00023594,7]
[355128520,1740931515632,-975.21,0.00027397,7]
[355128521,1740931515944,-151.0,0.00029863,7]
[355128522,1740931515968,-151.0,0.00029863,7]
[355128523,1740931515992,-885.952049,0.00029863,7]
[355128524,1740931516020,-885.952049,0.00029863,7]
[355128525,1740931516043,-151.0,0.00029863,7]
[355128526,1740931516068,-151.0,0.000299,7]
[355128527,1740931516092,-257.987654,0.000299,7]
[355128528,1740931516115,-151.0,0.000299,7]
[355128529,1740931516138,-151.0,0.000299,7]
[355128530,1740931516160,-151.0,0.000299,7]
[355128531,1740931516182,-151.0,0.000299,7]
[355128532,1740931516206,-885.952049,0.000299,7]
[355128533,1740931516229,-885.952049,0.000299,7]
[355128534,1740931516252,-885.952049,0.000299,7]
[355128535,1740931516279,-885.952049,0.000299,7]
[355128536,1740931516302,-151.0,0.000299,7]
[355128537,1740931516325,-151.0,0.000299,7]
[355128538,1740931516348,-151.0,0.0002998,7]
[355128539,1740931516372,-885.952049,0.0002998,7]
[355128540,1740931516396,-885.952049,0.0002998,7]
[355128541,1740931516422,-16029.94064563,0.0003,8]
[355128605,1740931582667,-202.95098844,0.0003,7]
[355128606,1740931582694,-3297.04901156,0.0003,7]
[355128703,1740931682976,-300.0,0.00017835,2]
[355128704,1740931683001,-15933.06799056,0.00017836,2]
[355128705,1740931683025,-263.16290489,0.00018242,2]
[355128706,1740931683050,-150.0,0.00018343,2]
[355128707,1740931683076,-450.0,0.00018343,2]
[355128708,1740931683099,-173.0,0.00018949,2]
[355128709,1740931683124,-150.0,0.00018974,2]
[355128710,1740931683151,-6631.88049425,0.000192,2]
[355128711,1740931683182,-420.0,0.00019463,2]
[355128712,1740931683209,-150.0,0.0001962,2]
[355128713,1740931683234,-450.0,0.0001962,2]
[355128714,1740931694367,-1928.8886103,0.00020038,2]
[355128816,1740931820187,-1476.0,0.000206,2]
[355128817,1740931820212,-150.0,0.00020883,2]
[355128843,1740931831990,-307.14800247,0.00021166,2]
[355128844,1740931832001,-150.0,0.00021436,2]
[355128845,1740931832011,-154.66,0.00021918,2]
[355128846,1740931832023,-1000.0,0.0002232,2]
[355128847,1740931832033,-500.0,0.00022383,2]
[355128848,1740931832043,-200.0,0.0002243,2]
[355128849,1740931832053,-2087.69261307,0.00022434,2]
[355128850,1740931832064,-1146.51,0.0002245,2]
[355128851,1740931832074,-150.0,0.0002266,2]
[355128852,1740931832085,-174.48,0.00022807,2]
[355128853,1740931832095,-1081.82,0.00022811,2]
[355128854,1740931832105,-244.42,0.00022867,2]
[355128855,1740931832115,-405.0600491,0.00022878,2]
[355128856,1740931832125,-200.0,0.00022889,2]
[355128857,1740931832135,-177.2,0.00022901,2]
[355128858,1740931832146,-6085.0,0.00022935,2]
[355128859,1740931832156,-200.0,0.00023,2]
[355128860,1740931832166,-500.0,0.0002302,30]
[355128861,1740931832176,-204.83,0.00023053,2]
[355128862,1740931832186,-4671.63386894,0.00023096,2]
[355128863,1740931832196,-3583.03,0.00023106,2]
[355128864,1740931832207,-150.0,0.00023114,2]
[355128865,1740931832217,-250.0,0.00023136,2]
[355128866,1740931832231,-4028.49,0.00023231,2]
[355128867,1740931832242,-405.0600491,0.00023233,2]
[355128868,1740931832253,-3927.0,0.00023303,2]
[355128869,1740931832265,-150.0,0.00023303,2]
[355128870,1740931832276,-187.09,0.00023314,2]
[355128871,1740931832286,-2000.0,0.00023338,2]
[355128872,1740931832296,-179.81,0.00023371,2]
[355128873,1740931832307,-158.56,0.00023384,2]
[355128874,1740931832317,-405.0600491,0.00023398,2]
[355128875,1740931832327,-23900.0,0.00023423,2]
[355128876,1740931832338,-200.0,0.00023425,2]
[355128877,1740931832349,-449.32,0.00023433,2]
[355128878,1740931832359,-306.57,0.00023483,2]
[355128879,1740931832369,-449.32,0.00023557,2]
[355128880,1740931832380,-11105.25967004,0.00023586,2]
[355128881,1740931832390,-306.46,0.00023597,2]
[355128882,1740931832400,-3577.37,0.00023601,2]
[355128883,1740931832412,-522.44,0.00023622,2]
[355128884,1740931832422,-405.0600491,0.00023679,2]
[355128885,1740931832433,-449.32,0.0002368,2]
[355128886,1740931832444,-150.564,0.00023728,2]
[355128887,1740931832456,-150.0,0.00023728,2]
[355128888,1740931832466,-449.32,0.00023803,2]
[355128889,1740931832477,-2751.0,0.00023826,2]
[355128890,1740931832488,-3777.40373759,0.00023895,2]
[355128891,1740931832498,-4216.96895677,0.000239,3]
[355128893,1740931832514,-2327.67686282,0.000239,3]
[355128894,1740931832525,-449.32,0.00023927,2]
[355128895,1740931832536,-822.88,0.00023967,2]
[355128896,1740931832547,-449.32,0.0002405,2]
[355128897,1740931832557,-405.0600491,0.00024059,2]
[355128898,1740931832568,-2033.981,0.00024105,2]
[355128899,1740931832579,-1280.335,0.00024105,2]
[355128900,1740931832590,-150.0,0.00024105,2]
[355128902,1740931832601,-640.0,0.00024105,2]
[355128904,1740931832612,-570.0,0.00024105,2]
[355128905,1740931832623,-1623.0,0.00024105,2]
[355128906,1740931832633,-787.0,0.00024105,2]
[355128908,1740931832644,-452.677,0.00024105,2]
[355128911,1740931832655,-405.0600491,0.00024139,2]
[355128916,1740931832665,-449.32,0.00024173,2]
[355128920,1740931832676,-415.41,0.00024174,2]
[355128923,1740931832688,-4385.02,0.00024174,2]
[355128926,1740931832698,-185.852,0.00024269,6]
[355128929,1740931832709,-3184.447,0.00024269,6]
[355128932,1740931832719,-449.32,0.00024297,2]
[355128935,1740931832730,-3003.17178212,0.00024302,2]
[355128938,1740931832740,-1038.69,0.0002434,2]
[355128941,1740931832755,-1852.42,0.00024403,2]
[355128942,1740931832767,-449.32,0.0002442,2]
[355128944,1740931832777,-405.0600491,0.00024515,2]
[355128945,1740931832788,-449.32,0.00024543,2]
[355128946,1740931832798,-606.14,0.00024657,2]
[355128947,1740931832808,-45.35330545,0.00024657,2]
[355128948,1740931832820,-456.85669455,0.00024657,2]
[355128949,1740931832831,-144.00973197,0.00024657,2]
[355128950,1740931832843,-355.99026803,0.00024657,2]
[355128951,1740931832853,-500.0,0.00024657,2]
[355128952,1740931832864,-500.0,0.00024657,2]
[355128953,1740931832882,-500.0,0.00024657,2]
[355128954,1740931832893,-41.63973197,0.00024657,2]
[355128955,1740931832907,-458.36026803,0.00024657,2]
[355128957,1740931832919,-478.49510091,0.00024657,2]
[355128959,1740931832929,-139.09958296,0.00024657,2]
[355128961,1740931832949,-360.90041704,0.00024657,2]
[355128962,1740931832960,-500.0,0.00024657,2]
[355128963,1740931832971,-300.0,0.00024657,2]
[355128964,1740931832981,-500.0,0.00024657,2]
[355128965,1740931832991,-500.0,0.00024657,2]
[355128966,1740931833001,-500.0,0.00024657,2]
[355128967,1740931833014,-500.0,0.00024657,2]
[355128968,1740931833027,-216.99438047,0.00024657,2]
[355128969,1740931833038,-500.0,0.00024657,2]
[355128970,1740931833049,-500.0,0.00024657,2]
[355128971,1740931833061,-372.78923868,0.00024657,2]
[355128972,1740931833072,-500.0,0.00024657,2]
[355128973,1740931833083,-449.32,0.00024667,2]
[355128974,1740931833094,-449.32,0.0002479,2]
[355128975,1740931833106,-884.3211,0.00024831,2]
[355128976,1740931833117,-368.101,0.00024831,2]
[355128977,1740931833128,-6544.64581958,0.00024866,4]
[355128978,1740931833139,-500.0,0.00024904,2]
[355128979,1740931833151,-449.32,0.00024913,2]
[355128980,1740931833161,-3003.17178204,0.00024924,2]
[355128981,1740931833173,-160.0,0.00024931,2]
[355128982,1740931833184,-499.63,0.00024931,2]
[355128983,1740931833194,-500.0,0.00024931,2]
[355128984,1740931833204,-405.0600491,0.00024931,2]
[355128985,1740931833215,-405.0600491,0.00024964,2]
[355128986,1740931833226,-1000.0,0.00025,3]
[355128987,1740931833236,-956.11616399,0.00025,3]
[355128988,1740931833258,-43.88383601,0.00025,3]
[355128989,1740931833274,-1000.0,0.00025,3]
[355128990,1740931833290,-449.32,0.00025037,2]
[355128991,1740931833301,-174.48,0.00025088,2]
[355128992,1740931833312,-218.50925898,0.0002511,2]
[355128993,1740931833325,-504.55901395,0.0002511,2]
[355128994,1740931833340,-276.93172707,0.0002511,2]
[355128995,1740931833351,-449.32,0.0002516,2]
[355128996,1740931833362,-298.0,0.000252,2]
[355128997,1740931833373,-500.0,0.00025205,2]
[355128999,1740931833383,-449.32,0.00025284,2]
[355129001,1740931833394,-832.4838,0.00025379,2]
[355129021,1740931833594,-297.4374,0.00025379,2]
[355129024,1740931833625,-2164.5298,0.00025379,2]
[355129026,1740931833637,-449.32,0.00025407,2]
[355129028,1740931833648,-405.0600491,0.00025457,2]
[355129030,1740931833658,-500.0,0.00025479,2]
[355129032,1740931833668,-834.72,0.00025489,2]
[355129034,1740931833679,-449.32,0.0002553,2]
[355129036,1740931833690,-405.0600491,0.00025534,2]
[355129038,1740931833700,-3003.17178204,0.00025546,2]
[355129040,1740931833711,-592.99,0.00025652,2]
[355129042,1740931833721,-200.430643,0.00025652,2]
[355129044,1740931833731,-500.0,0.00025652,2]
[355129046,1740931833742,-639.64,0.00025652,2]
[355129048,1740931833752,-500.0,0.00025652,2]
[355129050,1740931833762,-549.8,0.00025652,2]
[355129052,1740931833776,-500.0,0.00025652,2]
[355129054,1740931833787,-500.0,0.00025652,2]
[355129055,1740931833797,-843.01,0.00025652,2]
[355129057,1740931833807,-500.0,0.00025652,2]
[355129060,1740931833818,-500.0,0.00025652,2]
[355129061,1740931833829,-194.188231,0.00025652,2]
[355129063,1740931833840,-500.0,0.00025652,2]
[355129066,1740931833850,-2428.98,0.00025652,2]
[355129067,1740931833861,-500.0,0.00025652,2]
[355129070,1740931833873,-500.0,0.00025652,2]
[355129072,1740931833883,-500.0,0.00025652,2]
[355129073,1740931833894,-500.0,0.00025652,2]
[355129075,1740931833907,-500.0,0.00025652,2]
[355129077,1740931833917,-500.0,0.00025652,2]
[355129079,1740931833928,-500.0,0.00025652,2]
[355129081,1740931833939,-500.0,0.00025652,2]
[355129083,1740931833950,-500.0,0.00025652,2]
[355129086,1740931833960,-500.0,0.00025652,2]
[355129087,1740931833972,-500.0,0.00025652,2]
[355129089,1740931833984,-500.0,0.00025652,2]
[355129092,1740931833995,-500.0,0.00025652,2]
[355129093,1740931834005,-500.0,0.00025652,2]
[355129095,1740931834018,-1061.09,0.00025652,2]
[355129097,1740931834029,-500.0,0.00025652,2]
[355129099,1740931834039,-500.0,0.00025652,2]
[355129101,1740931834049,-500.0,0.00025652,2]
[355129103,1740931834058,-500.0,0.00025652,2]
[355129106,1740931834082,-500.0,0.00025652,2]
[355129109,1740931834094,-500.0,0.00025652,2]
[355129111,1740931834105,-1137.31,0.00025652,2]
[355129113,1740931834116,-500.0,0.00025652,2]
[355129115,1740931834127,-644.91,0.00025652,2]
[355129117,1740931834138,-608.57,0.00025652,2]
[355129119,1740931834149,-500.0,0.00025652,2]
[355129121,1740931834160,-500.0,0.00025652,2]
[355129123,1740931834172,-500.0,0.00025652,2]
[355129125,1740931834183,-597.02,0.00025652,2]
[355129127,1740931834195,-814.56,0.00025652,2]
[355129129,1740931834207,-500.0,0.00025652,2]
[355129131,1740931834218,-500.0,0.00025652,2]
[355129133,1740931834229,-500.0,0.00025652,2]
[355129135,1740931834241,-617.01,0.00025652,2]
[355129137,1740931834252,-595.65,0.00025652,2]
[355129139,1740931834268,-500.0,0.00025652,2]
[355129141,1740931834280,-500.0,0.00025652,2]
[355129143,1740931834293,-7940.59173073,0.00025653,2]
[355129146,1740931834309,-433.91527102,0.00025653,2]
[355129148,1740931834323,-1272.36,0.00025653,2]
[355129150,1740931834339,-532.01,0.00025653,2]
[355129154,1740931834367,-3523.59199825,0.00025653,2]
[355129156,1740931834379,-449.32,0.00025654,2]
[355129158,1740931834391,-500.0,0.00025753,2]
[355129160,1740931834402,-449.32,0.00025777,2]
[355129162,1740931834414,-4407.26800177,0.00025831,4]
[355129164,1740931834427,-840.0,0.00025831,4]
[355129166,1740931834441,-1297.37781781,0.00025831,4]
[355129168,1740931834452,-405.0600491,0.00025893,2]
[355129170,1740931834465,-592.99,0.00025926,2]
[355129172,1740931834476,-200.430643,0.00025926,2]
[355129174,1740931834487,-500.0,0.00025926,2]
[355129176,1740931834499,-639.64,0.00025926,2]
[355129178,1740931834510,-549.8,0.00025926,2]
[355129180,1740931834527,-500.0,0.00025926,2]
[355129182,1740931834537,-500.0,0.00025926,2]
[355129184,1740931834548,-843.01,0.00025926,2]
[355129187,1740931834559,-500.0,0.00025926,2]
[355129189,1740931834570,-500.0,0.00025926,2]
[355129191,1740931834580,-194.188231,0.00025926,2]
[355129193,1740931834591,-500.0,0.00025926,2]
[355129195,1740931834601,-2428.98,0.00025926,2]
[355129197,1740931834611,-500.0,0.00025926,2]
[355129198,1740931834622,-64.57378799,0.00025926,2]
[355129257,1740931835454,-505.8585054,0.00025926,2]
[355129259,1740931835465,-128.05859569,0.00025926,2]
[355129262,1740931835483,-292.87272461,0.00025926,2]
[355129517,1740931837978,-500.0,0.00025652,2]
[355129519,1740931837991,-240.33921893,0.00025652,2]
[355129529,1740931838077,-346.00078107,0.00025652,2]
[355129531,1740931838089,-79.0686797,0.00025926,2]
[355129533,1740931838101,-500.0,0.00025926,2]
[355129536,1740931838114,-500.0,0.00025926,2]
[355129538,1740931838126,-500.0,0.00025926,2]
[355129540,1740931838138,-347.63,0.00025926,2]
[355129542,1740931838151,-500.0,0.00025926,2]
[355129544,1740931838163,-500.0,0.00025926,2]
[355129547,1740931838175,-500.0,0.00025926,2]
[355129549,1740931838188,-500.0,0.00025926,2]
[355129551,1740931838200,-500.0,0.00025926,2]
[355129553,1740931838213,-500.0,0.00025926,2]
[355129555,1740931838225,-500.0,0.00025926,2]
[355129558,1740931838237,-1061.09,0.00025926,2]
[355129560,1740931838249,-500.0,0.00025926,2]
[355129562,1740931838261,-500.0,0.00025926,2]
[355129565,1740931838279,-500.0,0.00025926,2]
[355129567,1740931838292,-500.0,0.00025926,2]
[355129569,1740931838306,-1137.31,0.00025926,2]
[355129571,1740931838320,-500.0,0.00025926,2]
[355129573,1740931838331,-644.91,0.00025926,2]
[355129576,1740931838341,-608.57,0.00025926,2]
[355129578,1740931838352,-500.0,0.00025926,2]
[355129580,1740931838362,-500.0,0.00025926,2]
[355129582,1740931838372,-500.0,0.00025926,2]
[355129584,1740931838381,-597.02,0.00025926,2]
[355129586,1740931838391,-814.56,0.00025926,2]
[355129588,1740931838401,-500.0,0.00025926,2]
[355129590,1740931838410,-500.0,0.00025926,2]
[355129592,1740931838421,-500.0,0.00025926,2]
[355129594,1740931838430,-595.65,0.00025926,2]
[355129596,1740931838440,-500.0,0.00025926,2]
[355129598,1740931838450,-500.0,0.00025926,2]
[355129600,1740931838460,-192.88,0.00025926,2]
[355129622,1740931838726,-586.34,0.00025926,2]
[355129626,1740931838753,-405.0600491,0.00026103,2]
[355129628,1740931838764,-3003.17178204,0.00026168,2]
[355129630,1740931838779,-700.6,0.0002619,2]
[355129633,1740931838790,-200.430643,0.000262,2]
[355129635,1740931838800,-500.0,0.000262,2]
[355129636,1740931838810,-549.8,0.000262,2]
[355129639,1740931838820,-500.0,0.000262,2]
[355129640,1740931838830,-500.0,0.000262,2]
[355129642,1740931838840,-843.01,0.000262,2]
[355129645,1740931838850,-155.18160171,0.000262,2]
[355129647,1740931838861,-500.0,0.000262,2]
[355129649,1740931838871,-194.188231,0.000262,2]
[355129650,1740931838884,-500.0,0.000262,2]
[355129652,1740931838894,-2428.98,0.000262,2]
[355129654,1740931838903,-500.0,0.000262,2]
[355129656,1740931838915,-500.0,0.000262,2]
[355129658,1740931838924,-500.0,0.000262,2]
[355129661,1740931838935,-500.0,0.000262,2]
[355129663,1740931838945,-500.0,0.000262,2]
[355129665,1740931838955,-500.0,0.000262,2]
[355129667,1740931838965,-500.0,0.000262,2]
[355129668,1740931838976,-500.0,0.000262,2]
[355129670,1740931838986,-500.0,0.000262,2]
[355129672,1740931838995,-500.0,0.000262,2]
[355129674,1740931839005,-500.0,0.000262,2]
[355129676,1740931839015,-500.0,0.000262,2]
[355129678,1740931839033,-1061.09,0.000262,2]
[355129680,1740931839044,-500.0,0.000262,2]
[355129682,1740931839055,-500.0,0.000262,2]
[355129684,1740931839066,-500.0,0.000262,2]
[355129686,1740931839077,-500.0,0.000262,2]
[355129688,1740931839087,-1137.31,0.000262,2]
[355129690,1740931839098,-500.0,0.000262,2]
[355129692,1740931839108,-644.91,0.000262,2]
[355129694,1740931839118,-608.57,0.000262,2]
[355129697,1740931839129,-500.0,0.000262,2]
[355129699,1740931839140,-500.0,0.000262,2]
[355129700,1740931839150,-500.0,0.000262,2]
[355129702,1740931839159,-597.02,0.000262,2]
[355129704,1740931839169,-814.56,0.000262,2]
[355129706,1740931839179,-500.0,0.000262,2]
[355129708,1740931839189,-500.0,0.000262,2]
[355129710,1740931839199,-500.0,0.000262,2]
[355129712,1740931839209,-595.65,0.000262,2]
[355129714,1740931839219,-500.0,0.000262,2]
[355129716,1740931839229,-500.0,0.000262,2]
[355129718,1740931839239,-13587.8733,0.00026201,2]
[355129720,1740931839250,-292.8706,0.00026201,2]
[355129722,1740931839259,-1000.0,0.00026201,2]
[355129724,1740931839275,-555.4433,0.00026201,2]
[355129726,1740931839284,-500.0,0.00026209,2]
[355129728,1740931839295,-230.95620257,0.00026209,2]
[355129730,1740931839305,-1716.836,0.00026303,2]
[355129732,1740931839315,-150.0,0.00026303,2]
[355129734,1740931839325,-168.6120684,0.00026374,2]
[355129736,1740931839336,-200.0,0.00026444,2]
[355129738,1740931839346,-200.430643,0.00026474,2]
[355129740,1740931839356,-500.0,0.00026474,2]
[355129742,1740931839366,-549.8,0.00026474,2]
[355129744,1740931839377,-500.0,0.00026474,2]
[355129746,1740931839387,-500.0,0.00026474,2]
[355129748,1740931839398,-843.01,0.00026474,2]
[355129750,1740931839408,-500.0,0.00026474,2]
[355129752,1740931839418,-194.188231,0.00026474,2]
[355129754,1740931839428,-500.0,0.00026474,2]
[355129756,1740931839438,-2428.98,0.00026474,2]
[355129758,1740931839449,-500.0,0.00026474,2]
[355129760,1740931839459,-500.0,0.00026474,2]
[355129762,1740931839468,-500.0,0.00026474,2]
[355129764,1740931839478,-500.0,0.00026474,2]
[355129766,1740931839488,-500.0,0.00026474,2]
[355129768,1740931839498,-500.0,0.00026474,2]
[355129770,1740931839508,-500.0,0.00026474,2]
[355129772,1740931839521,-500.0,0.00026474,2]
[355129774,1740931839531,-500.0,0.00026474,2]
[355129776,1740931839541,-500.0,0.00026474,2]
[355129778,1740931839551,-500.0,0.00026474,2]
[355129781,1740931839561,-500.0,0.00026474,2]
[355129784,1740931839571,-1061.09,0.00026474,2]
[355129786,1740931839581,-500.0,0.00026474,2]
[355129788,1740931839590,-500.0,0.00026474,2]
[355129790,1740931839601,-500.0,0.00026474,2]
[355129792,1740931839611,-500.0,0.00026474,2]
[355129794,1740931839621,-1137.31,0.00026474,2]
[355129796,1740931839631,-500.0,0.00026474,2]
[355129798,1740931839641,-644.91,0.00026474,2]
[355129800,1740931839651,-608.57,0.00026474,2]
[355129802,1740931839662,-500.0,0.00026474,2]
[355129804,1740931839673,-500.0,0.00026474,2]
[355129806,1740931839683,-500.0,0.00026474,2]
[355129808,1740931839693,-597.02,0.00026474,2]
[355129809,1740931839702,-814.56,0.00026474,2]
[355129811,1740931839712,-500.0,0.00026474,2]
[355129813,1740931839722,-500.0,0.00026474,2]
[355129816,1740931839731,-500.0,0.00026474,2]
[355129818,1740931839740,-595.65,0.00026474,2]
[355129820,1740931839751,-500.0,0.00026474,2]
[355129822,1740931839760,-268.01,0.00026474,2]
[355129824,1740931839774,-405.0600491,0.00026522,2]
[355129826,1740931839785,-405.0600491,0.0002665,2]
[355129828,1740931839795,-2128.2664,0.00026662,2]